[Event "Late-Titled-Tuesday-Blitz-June-25-2024"]
[Site "Chess.com"]
[Date "2024.06.25"]
[Round "2"]
[White "Davidalhesa2007"]
[Black "pinelone"]
[Result "0-1"]
[WhiteElo "1908"]
[BlackElo "2429"]
[TimeControl "180+1"]
[EndTime "14:14:56 PDT"]
[Termination "pinelone won by resignation"]

1. d4 {[%clk 0:03:00.1]} 1... Nf6 {[%clk 0:02:59.8]} 2. Nc3 {[%clk 0:03:00.4]}
2... d5 {[%clk 0:02:59.8]} 3. Bf4 {[%clk 0:03:00.9]} 3... c5 {[%clk 0:02:58.9]}
4. e4 {[%clk 0:03:00.3]} 4... Nxe4 {[%clk 0:02:58.1]} 5. Nxe4 {[%clk 0:02:56.8]}
5... dxe4 {[%clk 0:02:58.2]} 6. dxc5 {[%clk 0:02:57.3]} 6... Qa5+ {[%clk
0:02:57.4]} 7. c3 {[%clk 0:02:57.6]} 7... Qxc5 {[%clk 0:02:57]} 8. Qa4+ {[%clk
0:02:58.2]} 8... Nc6 {[%clk 0:02:56.6]} 9. Qxe4 {[%clk 0:02:58.6]} 9... g6
{[%clk 0:02:56.4]} 10. Qc2 {[%clk 0:02:54.9]} 10... Bg7 {[%clk 0:02:50]} 11. Nf3
{[%clk 0:02:51.4]} 11... O-O {[%clk 0:02:45.9]} 12. Be2 {[%clk 0:02:41.7]} 12...
Bf5 {[%clk 0:02:45]} 13. Bd3 {[%clk 0:02:34.7]} 13... Nb4 {[%clk 0:02:38]} 14.
cxb4 {[%clk 0:02:27.9]} 14... Qxc2 {[%clk 0:02:37.9]} 15. Bxc2 {[%clk
0:02:28.1]} 15... Bxc2 {[%clk 0:02:38.5]} 16. Be5 {[%clk 0:02:01.7]} 16... f6
{[%clk 0:02:33.4]} 17. Bc3 {[%clk 0:01:57.1]} 17... e5 {[%clk 0:02:32.6]} 18.
O-O {[%clk 0:01:56.4]} 18... Rfd8 {[%clk 0:02:20.9]} 19. Rac1 {[%clk 0:01:53.5]}
19... Bd3 {[%clk 0:02:16.6]} 20. Rfe1 {[%clk 0:01:49.5]} 20... Rac8 {[%clk
0:02:14.8]} 21. h3 {[%clk 0:01:39.6]} 21... Kf7 {[%clk 0:02:11.8]} 22. g4 {[%clk
0:01:21.1]} 22... e4 {[%clk 0:02:01.8]} 23. Nd2 {[%clk 0:01:07.2]} 23... Bh6
{[%clk 0:01:59.4]} 24. Rcd1 {[%clk 0:00:35.7]} 24... Bc2 {[%clk 0:01:56.1]} 25.
Rc1 {[%clk 0:00:35.8]} 25... Rxc3 {[%clk 0:01:36.9]} 26. bxc3 {[%clk 0:00:32.6]}
26... Bxd2 {[%clk 0:01:36.8]} 27. Rxc2 {[%clk 0:00:32]} 27... Bxe1 {[%clk
0:01:36.8]} 0-1

[Event "Late-Titled-Tuesday-Blitz-June-25-2024"]
[Site "Chess.com"]
[Date "2024.06.25"]
[Round "2"]
[White "Renatoforf"]
[Black "wonderfultime"]
[Result "0-1"]
[WhiteElo "2133"]
[BlackElo "3047"]
[TimeControl "180+1"]
[EndTime "14:15:01 PDT"]
[Termination "wonderfultime won by resignation"]

1. e4 {[%clk 0:03:00.9]} 1... e5 {[%clk 0:02:52.9]} 2. Nc3 {[%clk 0:02:59.6]}
2... Nf6 {[%clk 0:02:50.6]} 3. Bc4 {[%clk 0:02:58.5]} 3... Nxe4 {[%clk
0:02:50.4]} 4. Qh5 {[%clk 0:02:57]} 4... Nd6 {[%clk 0:02:46.9]} 5. Bb3 {[%clk
0:02:56.6]} 5... Nc6 {[%clk 0:02:43.1]} 6. Nb5 {[%clk 0:02:55.2]} 6... g6 {[%clk
0:00:45.8]} 7. Qf3 {[%clk 0:02:53.7]} 7... Nf5 {[%clk 0:00:46.1]} 8. g4 {[%clk
0:02:46.4]} 8... a6 {[%clk 0:00:24.6]} 9. gxf5 {[%clk 0:02:42.2]} 9... axb5
{[%clk 0:00:25.2]} 10. fxg6 {[%clk 0:02:39.2]} 10... Qe7 {[%clk 0:00:23.6]} 11.
Qxf7+ {[%clk 0:02:34.4]} 11... Qxf7 {[%clk 0:00:23.6]} 12. gxf7+ {[%clk
0:02:34.6]} 12... Ke7 {[%clk 0:00:23.5]} 13. d3 {[%clk 0:02:34.3]} 13... h6
{[%clk 0:00:20]} 14. Nf3 {[%clk 0:02:32.7]} 14... d6 {[%clk 0:00:20.2]} 15. Rg1
{[%clk 0:02:30.4]} 15... Be6 {[%clk 0:00:20.4]} 16. Bxe6 {[%clk 0:02:27]} 16...
Kxe6 {[%clk 0:00:21.3]} 17. Bd2 {[%clk 0:02:20.3]} 17... Kxf7 {[%clk 0:00:21.2]}
18. a3 {[%clk 0:02:18.5]} 18... b4 {[%clk 0:00:21.6]} 19. a4 {[%clk 0:02:16.7]}
19... Be7 {[%clk 0:00:21.6]} 20. b3 {[%clk 0:02:15.7]} 20... b5 {[%clk 0:00:20]}
21. Ke2 {[%clk 0:02:12.7]} 21... bxa4 {[%clk 0:00:19.6]} 22. Rxa4 {[%clk
0:02:11.6]} 22... Rxa4 {[%clk 0:00:19.5]} 23. bxa4 {[%clk 0:02:10.8]} 23... d5
{[%clk 0:00:20.4]} 24. Ra1 {[%clk 0:02:02.3]} 24... h5 {[%clk 0:00:18.2]} 25.
Bg5 {[%clk 0:01:54.7]} 25... e4 {[%clk 0:00:15.8]} 26. Bxe7 {[%clk 0:01:52.9]}
26... exf3+ {[%clk 0:00:13.6]} 27. Kxf3 {[%clk 0:01:51.9]} 27... Kxe7 {[%clk
0:00:14.5]} 0-1

[Event "Late-Titled-Tuesday-Blitz-June-25-2024"]
[Site "Chess.com"]
[Date "2024.06.25"]
[Round "2"]
[White "GelmanAlexander"]
[Black "gabduschew"]
[Result "1-0"]
[WhiteElo "2703"]
[BlackElo "2395"]
[TimeControl "180+1"]
[EndTime "14:15:09 PDT"]
[Termination "GelmanAlexander won by resignation"]

1. c4 {[%clk 0:03:00.9]} 1... e5 {[%clk 0:02:57.2]} 2. e3 {[%clk 0:03:00.7]}
2... Nf6 {[%clk 0:02:54.4]} 3. a3 {[%clk 0:03:01]} 3... d5 {[%clk 0:02:53]} 4.
cxd5 {[%clk 0:03:01]} 4... Nxd5 {[%clk 0:02:53.9]} 5. Nf3 {[%clk 0:03:01.4]}
5... Nc6 {[%clk 0:02:51.6]} 6. d3 {[%clk 0:03:01.9]} 6... Be7 {[%clk 0:02:45.5]}
7. Nbd2 {[%clk 0:03:01.5]} 7... O-O {[%clk 0:02:44.6]} 8. b4 {[%clk 0:03:01.9]}
8... a6 {[%clk 0:02:41.8]} 9. Bb2 {[%clk 0:03:01.9]} 9... f6 {[%clk 0:02:26]}
10. Rc1 {[%clk 0:03:01.6]} 10... Kh8 {[%clk 0:02:24.9]} 11. h4 {[%clk
0:03:01.8]} 11... Bg4 {[%clk 0:02:11]} 12. Be2 {[%clk 0:03:00.8]} 12... Qe8
{[%clk 0:02:00]} 13. Ne4 {[%clk 0:02:55.1]} 13... Rd8 {[%clk 0:01:47.8]} 14. Qc2
{[%clk 0:02:54.7]} 14... Bxf3 {[%clk 0:01:35.9]} 15. gxf3 {[%clk 0:02:51.9]}
15... f5 {[%clk 0:01:11.1]} 16. Ng5 {[%clk 0:02:50.1]} 16... Bxg5 {[%clk
0:01:11.6]} 17. hxg5 {[%clk 0:02:51]} 17... Qg6 {[%clk 0:01:00.8]} 18. Qc4
{[%clk 0:02:16.5]} 18... f4 {[%clk 0:00:44.6]} 19. Kd2 {[%clk 0:02:10.2]} 19...
Nb6 {[%clk 0:00:37.5]} 20. Qe4 {[%clk 0:02:08.3]} 20... Qxe4 {[%clk 0:00:36.6]}
21. fxe4 {[%clk 0:02:08.7]} 21... f3 {[%clk 0:00:32.3]} 22. Bd1 {[%clk
0:01:56.8]} 22... Rd7 {[%clk 0:00:26.1]} 23. Rh3 {[%clk 0:01:36]} 23... Rfd8
{[%clk 0:00:23]} 24. Rc3 {[%clk 0:01:36.3]} 24... Na4 {[%clk 0:00:21.5]} 25.
Bxa4 {[%clk 0:01:35.6]} 1-0

[Event "Late-Titled-Tuesday-Blitz-June-25-2024"]
[Site "Chess.com"]
[Date "2024.06.25"]
[Round "2"]
[White "chess_cryptoworld"]
[Black "farzadbfd"]
[Result "0-1"]
[WhiteElo "2457"]
[BlackElo "2713"]
[TimeControl "180+1"]
[EndTime "14:15:10 PDT"]
[Termination "farzadbfd won by resignation"]

1. Nf3 {[%clk 0:03:00.9]} 1... d5 {[%clk 0:02:59.6]} 2. g3 {[%clk 0:03:00.8]}
2... Bf5 {[%clk 0:03:00.2]} 3. Bg2 {[%clk 0:03:01]} 3... Nf6 {[%clk 0:03:00.9]}
4. O-O {[%clk 0:03:01.2]} 4... e6 {[%clk 0:03:01.6]} 5. c4 {[%clk 0:03:01.6]}
5... c6 {[%clk 0:03:01.8]} 6. Qb3 {[%clk 0:03:02.2]} 6... Qb6 {[%clk 0:03:02.1]}
7. d3 {[%clk 0:03:02.8]} 7... Bc5 {[%clk 0:03:00.6]} 8. cxd5 {[%clk 0:03:02.1]}
8... cxd5 {[%clk 0:03:00.3]} 9. Nc3 {[%clk 0:03:02.6]} 9... O-O {[%clk
0:02:58.9]} 10. Qxb6 {[%clk 0:02:58.4]} 10... axb6 {[%clk 0:02:57.3]} 11. Nb5
{[%clk 0:02:46.5]} 11... Nc6 {[%clk 0:02:55.2]} 12. Bd2 {[%clk 0:02:43.4]} 12...
Rfc8 {[%clk 0:02:48.3]} 13. Bc3 {[%clk 0:02:40.1]} 13... Ne8 {[%clk 0:02:19.7]}
14. Rfc1 {[%clk 0:02:35.9]} 14... Nd6 {[%clk 0:02:19.2]} 15. Nxd6 {[%clk
0:02:35.3]} 15... Bxd6 {[%clk 0:02:20.1]} 16. Nh4 {[%clk 0:02:32.1]} 16... Bg4
{[%clk 0:02:20.3]} 17. f3 {[%clk 0:02:30]} 17... Bh5 {[%clk 0:02:20.9]} 18. g4
{[%clk 0:02:28.9]} 18... Bg6 {[%clk 0:02:21.2]} 19. Nxg6 {[%clk 0:02:28.6]}
19... hxg6 {[%clk 0:02:22.1]} 20. e3 {[%clk 0:02:25.1]} 20... d4 {[%clk
0:02:19.1]} 21. Bxd4 {[%clk 0:02:21.4]} 21... Nxd4 {[%clk 0:02:19.3]} 22. exd4
{[%clk 0:02:22.1]} 22... Bf4 {[%clk 0:01:40.8]} 23. Rc4 {[%clk 0:02:07.3]} 23...
b5 {[%clk 0:01:33.7]} 24. Rc3 {[%clk 0:02:05.9]} 24... Be3+ {[%clk 0:01:31.8]}
25. Kf1 {[%clk 0:02:03]} 25... Bxd4 {[%clk 0:01:32.3]} 26. Rxc8+ {[%clk
0:01:50.4]} 26... Rxc8 {[%clk 0:01:33.2]} 27. Re1 {[%clk 0:01:49.6]} 27... g5
{[%clk 0:01:19.4]} 28. f4 {[%clk 0:01:44.1]} 28... gxf4 {[%clk 0:01:19.3]} 29.
Bxb7 {[%clk 0:01:42.5]} 29... Rc7 {[%clk 0:01:11.5]} 30. Bf3 {[%clk 0:01:18.8]}
30... Bxb2 {[%clk 0:01:10.5]} 31. Rb1 {[%clk 0:01:18.6]} 31... Rc2 {[%clk
0:01:10.2]} 32. Be2 {[%clk 0:01:12.9]} 32... e5 {[%clk 0:01:06.1]} 33. Ke1
{[%clk 0:01:12.4]} 33... Bc3+ {[%clk 0:01:05]} 34. Kd1 {[%clk 0:01:12.7]} 34...
Rd2+ {[%clk 0:01:05]} 35. Kc1 {[%clk 0:01:08.4]} 35... Rxe2 {[%clk 0:01:04.8]}
0-1

[Event "Late-Titled-Tuesday-Blitz-June-25-2024"]
[Site "Chess.com"]
[Date "2024.06.25"]
[Round "2"]
[White "carokannlover213"]
[Black "Kaslask"]
[Result "1-0"]
[WhiteElo "2665"]
[BlackElo "2236"]
[TimeControl "180+1"]
[EndTime "14:15:14 PDT"]
[Termination "carokannlover213 won on time"]

1. b3 {[%clk 0:03:00.9]} 1... b6 {[%clk 0:02:57.5]} 2. Bb2 {[%clk 0:02:57.7]}
2... Bb7 {[%clk 0:02:57.4]} 3. c4 {[%clk 0:02:57.3]} 3... c5 {[%clk 0:02:56]} 4.
d4 {[%clk 0:02:57]} 4... cxd4 {[%clk 0:02:54.4]} 5. Qxd4 {[%clk 0:02:57.5]} 5...
Nc6 {[%clk 0:02:53.8]} 6. Qh4 {[%clk 0:02:57.9]} 6... e6 {[%clk 0:02:51.2]} 7.
Qg3 {[%clk 0:02:52.7]} 7... Nf6 {[%clk 0:02:49.7]} 8. Nd2 {[%clk 0:02:46.4]}
8... d5 {[%clk 0:02:47.4]} 9. Ngf3 {[%clk 0:02:36.8]} 9... Ne4 {[%clk
0:02:37.6]} 10. Nxe4 {[%clk 0:02:30.7]} 10... dxe4 {[%clk 0:02:37.4]} 11. Nd2
{[%clk 0:02:31.3]} 11... Bb4 {[%clk 0:02:36.4]} 12. O-O-O {[%clk 0:02:30.1]}
12... Qe7 {[%clk 0:02:16.3]} 13. Nxe4 {[%clk 0:02:22.9]} 13... f6 {[%clk
0:02:14.3]} 14. Nd6+ {[%clk 0:02:20.6]} 14... Bxd6 {[%clk 0:02:08.1]} 15. Qxd6
{[%clk 0:02:21.5]} 15... Rd8 {[%clk 0:02:00.7]} 16. Qxe7+ {[%clk 0:02:21.5]}
16... Nxe7 {[%clk 0:01:54.9]} 17. f3 {[%clk 0:02:11]} 17... Kf7 {[%clk
0:01:54.1]} 18. e4 {[%clk 0:02:09.6]} 18... g5 {[%clk 0:01:54]} 19. Be2 {[%clk
0:02:02]} 19... h5 {[%clk 0:01:53.8]} 20. h4 {[%clk 0:02:00.3]} 20... g4 {[%clk
0:01:47.1]} 21. fxg4 {[%clk 0:01:54.1]} 21... Bxe4 {[%clk 0:01:44.7]} 22. Rhf1
{[%clk 0:01:48]} 22... Rxd1+ {[%clk 0:01:26.3]} 23. Bxd1 {[%clk 0:01:48.9]}
23... Rg8 {[%clk 0:01:21]} 24. Rxf6+ {[%clk 0:01:46.5]} 24... Ke8 {[%clk
0:01:20.9]} 25. Rxe6 {[%clk 0:01:44.3]} 25... Rxg4 {[%clk 0:01:19.7]} 26. Bxg4
{[%clk 0:01:43.1]} 1-0

[Event "Late-Titled-Tuesday-Blitz-June-25-2024"]
[Site "Chess.com"]
[Date "2024.06.25"]
[Round "2"]
[White "wild3000"]
[Black "Hirna2005"]
[Result "0-1"]
[WhiteElo "2538"]
[BlackElo "2360"]
[TimeControl "180+1"]
[EndTime "14:15:27 PDT"]
[Termination "Hirna2005 won by resignation"]

1. c4 {[%clk 0:01:40]} 1... g6 {[%clk 0:03:00]} 2. h4 {[%clk 0:01:39.8]} 2... h5
{[%clk 0:02:58.6]} 3. d4 {[%clk 0:01:39.5]} 3... Bg7 {[%clk 0:02:58.6]} 4. Nc3
{[%clk 0:01:39.9]} 4... d6 {[%clk 0:02:59]} 5. e4 {[%clk 0:01:40.1]} 5... Nc6
{[%clk 0:02:58.9]} 6. Be3 {[%clk 0:01:38.5]} 6... e5 {[%clk 0:02:58.3]} 7. d5
{[%clk 0:01:35.9]} 7... Nce7 {[%clk 0:02:52]} 8. c5 {[%clk 0:01:33.5]} 8... f5
{[%clk 0:02:50.8]} 9. cxd6 {[%clk 0:01:32.7]} 9... cxd6 {[%clk 0:02:50.4]} 10.
f3 {[%clk 0:01:30.1]} 10... Bh6 {[%clk 0:02:42.5]} 11. Bxh6 {[%clk 0:01:26]}
11... Nxh6 {[%clk 0:02:42.1]} 12. Bb5+ {[%clk 0:01:26.2]} 12... Bd7 {[%clk
0:02:40.8]} 13. Qa4 {[%clk 0:01:25.8]} 13... a6 {[%clk 0:02:38.7]} 14. Bxd7+
{[%clk 0:01:25.6]} 14... Qxd7 {[%clk 0:02:39.1]} 15. Qb4 {[%clk 0:01:19.5]}
15... b5 {[%clk 0:02:33.9]} 16. a4 {[%clk 0:01:17.5]} 16... Rb8 {[%clk
0:02:31.9]} 17. axb5 {[%clk 0:01:16.9]} 17... axb5 {[%clk 0:02:31.8]} 18. Ra6
{[%clk 0:01:12.5]} 18... Nf7 {[%clk 0:02:24.4]} 19. Nh3 {[%clk 0:01:10.2]} 19...
O-O {[%clk 0:02:23.4]} 20. O-O {[%clk 0:01:04.6]} 20... Rfc8 {[%clk 0:02:19.3]}
21. Rfa1 {[%clk 0:00:49.8]} 21... Rc4 {[%clk 0:02:15.4]} 22. Qb3 {[%clk
0:00:49.6]} 22... Rb7 {[%clk 0:02:07.3]} 23. R1a5 {[%clk 0:00:24.1]} 23... Rc5
{[%clk 0:02:01.8]} 24. Ra8+ {[%clk 0:00:18.1]} 24... Kg7 {[%clk 0:02:00.9]} 25.
Qd1 {[%clk 0:00:14.3]} 25... Qc7 {[%clk 0:01:54.8]} 26. Kh2 {[%clk 0:00:11.7]}
26... b4 {[%clk 0:01:49.6]} 27. Na4 {[%clk 0:00:11]} 27... Rxa5 {[%clk
0:01:48.3]} 28. Rxa5 {[%clk 0:00:10.1]} 28... Qxa5 {[%clk 0:01:48.4]} 29. b3
{[%clk 0:00:11]} 29... Qa7 {[%clk 0:01:46]} 30. f4 {[%clk 0:00:10]} 30... Qd4
{[%clk 0:01:43.3]} 31. exf5 {[%clk 0:00:09.1]} 31... Qxd1 {[%clk 0:01:41.7]} 0-1

[Event "Late-Titled-Tuesday-Blitz-June-25-2024"]
[Site "Chess.com"]
[Date "2024.06.25"]
[Round "2"]
[White "jamengrand"]
[Black "Pitomina"]
[Result "0-1"]
[WhiteElo "2319"]
[BlackElo "2527"]
[TimeControl "180+1"]
[EndTime "14:15:30 PDT"]
[Termination "Pitomina won by resignation"]

1. e4 {[%clk 0:02:56.9]} 1... e5 {[%clk 0:02:58]} 2. Nf3 {[%clk 0:02:56.6]} 2...
Nc6 {[%clk 0:02:57.9]} 3. Nc3 {[%clk 0:02:55.9]} 3... Nf6 {[%clk 0:02:57.1]} 4.
Nd5 {[%clk 0:02:56]} 4... d6 {[%clk 0:02:35.4]} 5. d4 {[%clk 0:02:54.1]} 5...
Nxd5 {[%clk 0:02:30.7]} 6. exd5 {[%clk 0:02:53]} 6... Nxd4 {[%clk 0:02:16]} 7.
Nxd4 {[%clk 0:02:51.7]} 7... exd4 {[%clk 0:02:16.9]} 8. Qxd4 {[%clk 0:02:34.3]}
8... Qe7+ {[%clk 0:02:15.8]} 9. Be3 {[%clk 0:02:31.9]} 9... Qe5 {[%clk
0:02:16.1]} 10. Bb5+ {[%clk 0:02:29.9]} 10... Bd7 {[%clk 0:02:13.9]} 11. Bxd7+
{[%clk 0:02:29.3]} 11... Kxd7 {[%clk 0:02:14.8]} 12. Qa4+ {[%clk 0:02:28.4]}
12... Kd8 {[%clk 0:02:12.2]} 13. O-O-O {[%clk 0:02:25.9]} 13... Be7 {[%clk
0:02:12.7]} 14. Rhe1 {[%clk 0:02:23.2]} 14... a6 {[%clk 0:02:10.1]} 15. Kb1
{[%clk 0:02:17]} 15... Qf5 {[%clk 0:02:03]} 16. Rd4 {[%clk 0:01:39.9]} 16... Bf6
{[%clk 0:01:49.5]} 17. g4 {[%clk 0:01:20.6]} 17... Qd7 {[%clk 0:01:49]} 18.
Qxd7+ {[%clk 0:01:09.8]} 18... Kxd7 {[%clk 0:01:49.9]} 19. Rf4 {[%clk
0:01:09.9]} 19... h6 {[%clk 0:01:49.3]} 20. Rf3 {[%clk 0:01:07]} 20... Rae8
{[%clk 0:01:48.2]} 21. Rg1 {[%clk 0:01:06.8]} 21... Re7 {[%clk 0:01:46.1]} 22.
c4 {[%clk 0:01:06.5]} 22... Bg5 {[%clk 0:01:44]} 23. Bd4 {[%clk 0:00:55.5]}
23... f6 {[%clk 0:01:40.4]} 24. Rh1 {[%clk 0:00:52.9]} 24... Rhe8 {[%clk
0:01:38.6]} 25. Kc2 {[%clk 0:00:44.1]} 25... Re4 {[%clk 0:01:36.3]} 26. h4
{[%clk 0:00:24.7]} 26... Rxd4 {[%clk 0:01:34.3]} 27. hxg5 {[%clk 0:00:24.8]}
27... hxg5 {[%clk 0:01:35.1]} 28. Kc3 {[%clk 0:00:23.6]} 28... Rxg4 {[%clk
0:01:34.8]} 29. Rh7 {[%clk 0:00:21.2]} 29... Re7 {[%clk 0:01:35.3]} 30. Re3
{[%clk 0:00:17.4]} 30... Rxe3+ {[%clk 0:01:25.3]} 31. fxe3 {[%clk 0:00:18.3]}
31... Re4 {[%clk 0:01:25.9]} 32. Rxg7+ {[%clk 0:00:17]} 32... Re7 {[%clk
0:01:26.3]} 33. Kd3 {[%clk 0:00:17.9]} 33... Rxg7 {[%clk 0:01:26.4]} 0-1

[Event "Late-Titled-Tuesday-Blitz-June-25-2024"]
[Site "Chess.com"]
[Date "2024.06.25"]
[Round "2"]
[White "GoValya"]
[Black "Root_21"]
[Result "0-1"]
[WhiteElo "2213"]
[BlackElo "2660"]
[TimeControl "180+1"]
[EndTime "14:15:39 PDT"]
[Termination "Root_21 won by resignation"]

1. d4 {[%clk 0:03:00.9]} 1... d5 {[%clk 0:02:57.5]} 2. Nf3 {[%clk 0:03:00.6]}
2... Nf6 {[%clk 0:02:54.8]} 3. c4 {[%clk 0:03:00.3]} 3... e6 {[%clk 0:02:54.8]}
4. g3 {[%clk 0:02:57.9]} 4... dxc4 {[%clk 0:02:53]} 5. Bg2 {[%clk 0:02:57.5]}
5... c6 {[%clk 0:02:52.8]} 6. O-O {[%clk 0:02:57.6]} 6... b5 {[%clk 0:02:52.5]}
7. Ne5 {[%clk 0:02:56.8]} 7... Bb7 {[%clk 0:02:52.7]} 8. a4 {[%clk 0:02:56.3]}
8... a6 {[%clk 0:02:52.5]} 9. f4 {[%clk 0:02:47.8]} 9... Qb6 {[%clk 0:02:28.7]}
10. f5 {[%clk 0:02:37.1]} 10... exf5 {[%clk 0:02:23.7]} 11. Rxf5 {[%clk
0:02:36.8]} 11... Bd6 {[%clk 0:02:17.4]} 12. Bg5 {[%clk 0:02:19.7]} 12... Nbd7
{[%clk 0:02:06.3]} 13. Bxf6 {[%clk 0:02:05.6]} 13... Nxf6 {[%clk 0:02:03.6]} 14.
Nc3 {[%clk 0:01:58.9]} 14... Rd8 {[%clk 0:01:51.9]} 15. e3 {[%clk 0:01:42.4]}
15... O-O {[%clk 0:01:48.9]} 16. Rxf6 {[%clk 0:01:18.7]} 16... Bxe5 {[%clk
0:01:35.3]} 17. Rf5 {[%clk 0:01:16.6]} 17... Bxd4 {[%clk 0:01:30.8]} 18. Qf1
{[%clk 0:01:04.1]} 18... Bxc3 {[%clk 0:01:27]} 19. bxc3 {[%clk 0:01:03.2]} 19...
Qxe3+ {[%clk 0:01:27.6]} 20. Kh1 {[%clk 0:01:03.6]} 20... Qxc3 {[%clk
0:01:27.5]} 21. axb5 {[%clk 0:01:03.8]} 21... axb5 {[%clk 0:01:27.4]} 22. Re1
{[%clk 0:00:48.5]} 22... Qd3 {[%clk 0:01:20.3]} 23. Qf2 {[%clk 0:00:42.3]} 23...
c3 {[%clk 0:01:17.3]} 24. Re7 {[%clk 0:00:29.9]} 24... c2 {[%clk 0:01:05.4]} 25.
Rfxf7 {[%clk 0:00:19.8]} 25... c1=Q+ {[%clk 0:01:04.3]} 26. Bf1 {[%clk
0:00:20.2]} 26... Qd5+ {[%clk 0:01:03.3]} 27. Kg1 {[%clk 0:00:20]} 27... Rxf7
{[%clk 0:01:03.1]} 0-1

[Event "Late-Titled-Tuesday-Blitz-June-25-2024"]
[Site "Chess.com"]
[Date "2024.06.25"]
[Round "2"]
[White "MKlose11"]
[Black "Big_Finky"]
[Result "1-0"]
[WhiteElo "2617"]
[BlackElo "2338"]
[TimeControl "180+1"]
[EndTime "14:15:40 PDT"]
[Termination "MKlose11 won by checkmate"]

1. e4 {[%clk 0:03:00.9]} 1... c5 {[%clk 0:02:59.7]} 2. Nc3 {[%clk 0:03:00.4]}
2... e6 {[%clk 0:02:59.9]} 3. g3 {[%clk 0:03:00]} 3... d5 {[%clk 0:02:58.7]} 4.
Bg2 {[%clk 0:02:59.5]} 4... Nf6 {[%clk 0:02:58.7]} 5. Nge2 {[%clk 0:02:56.7]}
5... Nc6 {[%clk 0:02:43.9]} 6. exd5 {[%clk 0:02:52.4]} 6... exd5 {[%clk
0:02:44.8]} 7. d4 {[%clk 0:02:52.5]} 7... cxd4 {[%clk 0:02:44.9]} 8. Nxd4 {[%clk
0:02:52.2]} 8... Bg4 {[%clk 0:02:45.5]} 9. Nce2 {[%clk 0:02:51.7]} 9... Bc5
{[%clk 0:02:26.5]} 10. f3 {[%clk 0:02:42.6]} 10... Bd7 {[%clk 0:02:22.4]} 11. c3
{[%clk 0:02:38]} 11... O-O {[%clk 0:02:21.7]} 12. O-O {[%clk 0:02:37.4]} 12...
Re8 {[%clk 0:02:13.1]} 13. Kh1 {[%clk 0:02:34.4]} 13... Rc8 {[%clk 0:01:26.6]}
14. Bf4 {[%clk 0:02:24.4]} 14... Qb6 {[%clk 0:01:22.9]} 15. Qd2 {[%clk
0:02:19.2]} 15... Nxd4 {[%clk 0:01:10.4]} 16. Nxd4 {[%clk 0:02:17.9]} 16... h6
{[%clk 0:00:55.8]} 17. Nb3 {[%clk 0:02:17]} 17... Bb5 {[%clk 0:00:48]} 18. Rfe1
{[%clk 0:02:14.3]} 18... Bf2 {[%clk 0:00:47.8]} 19. Rxe8+ {[%clk 0:02:07]} 19...
Rxe8 {[%clk 0:00:48.7]} 20. Bf1 {[%clk 0:01:58.2]} 20... Bc4 {[%clk 0:00:37.8]}
21. Kg2 {[%clk 0:01:53.7]} 21... Be3 {[%clk 0:00:26]} 22. Bxe3 {[%clk
0:01:51.9]} 22... Qxe3 {[%clk 0:00:22.1]} 23. Qxe3 {[%clk 0:01:51.6]} 23... Rxe3
{[%clk 0:00:23]} 24. Nd4 {[%clk 0:01:50.7]} 24... Kf8 {[%clk 0:00:16.2]} 25. Kf2
{[%clk 0:01:49.2]} 25... Re8 {[%clk 0:00:15.3]} 26. Bh3 {[%clk 0:01:44.2]} 26...
g6 {[%clk 0:00:14.7]} 27. a4 {[%clk 0:01:41.1]} 27... a6 {[%clk 0:00:11.9]} 28.
a5 {[%clk 0:01:40.6]} 28... Ke7 {[%clk 0:00:11.8]} 29. Re1+ {[%clk 0:01:37.6]}
29... Kd6 {[%clk 0:00:11.3]} 30. Rxe8 {[%clk 0:01:35.6]} 30... Nxe8 {[%clk
0:00:12.2]} 31. Ke3 {[%clk 0:01:32.4]} 31... Kc5 {[%clk 0:00:08.9]} 32. Bc8
{[%clk 0:01:25.7]} 32... Nd6 {[%clk 0:00:08.4]} 33. b4# {[%clk 0:01:25.3]} 1-0

[Event "Late-Titled-Tuesday-Blitz-June-25-2024"]
[Site "Chess.com"]
[Date "2024.06.25"]
[Round "2"]
[White "zimmm36"]
[Black "VD_coach"]
[Result "0-1"]
[WhiteElo "2720"]
[BlackElo "2549"]
[TimeControl "180+1"]
[EndTime "14:15:42 PDT"]
[Termination "VD_coach won by resignation"]

1. c4 {[%clk 0:03:00.9]} 1... Nf6 {[%clk 0:02:57.6]} 2. Nc3 {[%clk 0:03:00.2]}
2... g6 {[%clk 0:02:55.1]} 3. e4 {[%clk 0:03:00.4]} 3... d6 {[%clk 0:02:54.3]}
4. d4 {[%clk 0:03:00.3]} 4... Bg7 {[%clk 0:02:53.8]} 5. Nf3 {[%clk 0:03:00.1]}
5... O-O {[%clk 0:02:52]} 6. Be2 {[%clk 0:03:00.4]} 6... c5 {[%clk 0:02:52.2]}
7. O-O {[%clk 0:03:00]} 7... Bg4 {[%clk 0:02:51.3]} 8. Be3 {[%clk 0:02:59.3]}
8... Nfd7 {[%clk 0:02:47.3]} 9. d5 {[%clk 0:02:55.3]} 9... Nb6 {[%clk
0:02:00.9]} 10. Nd2 {[%clk 0:02:51.9]} 10... Bxe2 {[%clk 0:01:56.5]} 11. Qxe2
{[%clk 0:02:52.8]} 11... N8d7 {[%clk 0:01:55.6]} 12. Rac1 {[%clk 0:02:51]} 12...
e6 {[%clk 0:01:49.8]} 13. f3 {[%clk 0:02:47.9]} 13... Bd4 {[%clk 0:01:38.7]} 14.
Kh1 {[%clk 0:02:44.8]} 14... e5 {[%clk 0:01:21.4]} 15. Bh6 {[%clk 0:02:43.5]}
15... Re8 {[%clk 0:01:20.7]} 16. g3 {[%clk 0:02:42.3]} 16... Qf6 {[%clk
0:01:13.7]} 17. Qg2 {[%clk 0:02:37]} 17... g5 {[%clk 0:00:34.5]} 18. Qh3 {[%clk
0:02:34.8]} 18... Be3 {[%clk 0:00:34.7]} 19. Rc2 {[%clk 0:02:22.1]} 19... Kh8
{[%clk 0:00:27.1]} 20. b3 {[%clk 0:02:17.7]} 20... g4 {[%clk 0:00:22.1]} 21.
Qxg4 {[%clk 0:02:11.7]} 21... Qxh6 {[%clk 0:00:20.3]} 22. Ndb1 {[%clk
0:02:11.9]} 22... Rg8 {[%clk 0:00:18.7]} 23. Qh4 {[%clk 0:02:04.7]} 23... Qxh4
{[%clk 0:00:18.4]} 24. gxh4 {[%clk 0:02:05.6]} 24... a6 {[%clk 0:00:17.4]} 25.
Rg2 {[%clk 0:02:05.5]} 25... Rxg2 {[%clk 0:00:16.9]} 26. Kxg2 {[%clk 0:02:03.5]}
26... Rg8+ {[%clk 0:00:17.8]} 27. Kh3 {[%clk 0:02:03.6]} 27... Nf6 {[%clk
0:00:17.9]} 28. Ne2 {[%clk 0:02:02.7]} 28... Nh5 {[%clk 0:00:18.2]} 29. Nbc3
{[%clk 0:02:03]} 29... Nd7 {[%clk 0:00:18.2]} 30. Nd1 {[%clk 0:02:02.5]} 30...
Bd4 {[%clk 0:00:17.9]} 31. Nf2 {[%clk 0:02:02.5]} 31... Nf8 {[%clk 0:00:17.9]}
32. Ng4 {[%clk 0:02:02.6]} 32... Ng6 {[%clk 0:00:18.1]} 33. Kg2 {[%clk
0:01:49.1]} 33... Ngf4+ {[%clk 0:00:18.4]} 34. Nxf4 {[%clk 0:01:48.3]} 34...
Nxf4+ {[%clk 0:00:19.3]} 35. Kh1 {[%clk 0:01:48.5]} 35... Rg6 {[%clk 0:00:18.2]}
36. a3 {[%clk 0:01:46.5]} 36... h5 {[%clk 0:00:18.4]} 37. Nf2 {[%clk 0:01:44]}
37... Rg2 {[%clk 0:00:18.4]} 38. Nd1 {[%clk 0:01:40.6]} 38... Rd2 {[%clk
0:00:18]} 39. b4 {[%clk 0:01:37.3]} 39... Nd3 {[%clk 0:00:18]} 0-1